bitfinex/quotes_ETHUSD_20251021
["timestamp","ask_amount","ask_price","bid_price","bid_amount"]
[1761018344735,16.7477982,3942.2,3942.1,0.002]
[1761018344893,14.2945482,3942.2,3942.1,0.002]
[1761018345094,14.1694762,3942.2,3942.1,0.002]
[1761018345301,13.4407542,3942.2,3942.1,0.002]
[1761018346240,14.0404012,3942.2,3942.1,0.002]
[1761018346425,12.3416532,3942.2,3942.1,0.002]
[1761018347140,14.6962302,3942.2,3942.1,0.002]
[1761018347347,13.3310482,3942.2,3942.1,0.002]
[1761018348182,15.3567052,3942.2,3942.1,0.002]
[1761018348383,12.5788262,3942.2,3942.1,0.002]
[1761018348581,12.18091851,3942.2,3942.1,0.002]
[1761018349061,9.06622251,3942.2,3942.1,0.002]
[1761018349261,12.52673251,3942.2,3942.1,0.002]
[1761018350060,9.06622251,3942.2,3942.1,0.002]
[1761018350265,12.35075351,3942.2,3942.1,0.002]
[1761018351276,14.09707851,3942.2,3942.1,0.002]
[1761018351478,12.7929012,3942.2,3942.1,0.002]
[1761018351967,11.9747462,3942.2,3942.1,0.002]
[1761018352294,12.1832302,3942.2,3942.1,0.002]
[1761018352490,9.3558192,3942.2,3942.1,0.002]
[1761018352651,11.5124422,3942.2,3942.1,0.002]
[1761018353252,17.1326042,3942.2,3942.1,0.002]
[1761018353664,17.2409042,3942.2,3942.1,0.002]
[1761018354262,26.4374112,3942.2,3942.1,0.002]
[1761018354593,17.9579862,3942.2,3942.1,0.002]
[1761018355389,19.9429352,3942.2,3942.1,0.002]
[1761018355597,18.5372342,3942.2,3942.1,0.002]
[1761018355904,15.1479462,3942.2,3942.1,0.002]
[1761018356305,12.9323932,3942.2,3942.1,0.002]
[1761018357095,11.7877282,3942.2,3942.1,0.002]
[1761018357403,14.0274922,3942.2,3942.1,0.002]
[1761018357700,11.7572302,3942.2,3942.1,0.002]
[1761018357997,6.1578192,3942.2,3942.1,0.002]
[1761018358203,13.0035412,3942.2,3942.1,0.002]
[1761018358361,13.4369502,3942.2,3942.1,0.002]
[1761018359289,9.3568192,3942.2,3942.1,0.002]
[1761018359495,15.1164482,3942.2,3942.1,0.002]
[1761018359694,13.7964482,3942.2,3942.1,0.002]
[1761018359895,11.7510542,3942.2,3942.1,0.002]
[1761018360412,6.1578192,3942.2,3942.1,0.002]
[1761018360566,4.70776401,3942.2,3942.1,0.6997]
[1761018360898,7.50886732,3942.2,3942.1,0.2344]
[1761018361099,7.50886732,3942.2,3942.1,0.6997]
[1761018361393,7.46465465,3942.2,3942.1,0.6997]
[1761018362397,7.46465465,3942.2,3942.1,0.002]
[1761018362398,16.55402177,3942.2,3942.1,0.002]
[1761018363469,26.55578777,3942.2,3942.1,0.002]
[1761018363699,25.85946314,3942.2,3942.1,0.002]
[1761018363902,26.56327713,3942.2,3942.1,0.002]
[1761018364083,27.07015713,3942.2,3942.1,0.002]
[1761018364483,38.11178313,3942.2,3942.1,0.002]
[1761018364679,32.92322413,3942.2,3942.1,0.002]
[1761018364880,32.29574813,3942.2,3942.1,0.002]
[1761018365284,31.26674813,3942.2,3942.1,0.002]
[1761018365481,36.36043313,3942.2,3942.1,0.002]
[1761018365686,30.26674813,3942.2,3942.1,0.002]
[1761018366593,36.56969213,3942.2,3942.1,0.002]
[1761018367104,34.06964213,3942.2,3942.1,0.002]
[1761018367306,34.06964213,3942.2,3941.7,1e-08]
[1761018367307,0.50688,3941.8,3941.7,1e-08]
[1761018367511,33.05101167,3941.8,3941.7,1e-08]
[1761018367690,33.32551167,3941.8,3941.7,1e-08]
[1761018368005,28.62182994,3941.8,3941.7,1e-08]
[1761018368309,28.10061894,3941.8,3941.7,1e-08]
[1761018368474,26.41697006,3941.8,3941.7,1e-08]
[1761018369604,27.60492106,3941.8,3941.7,1e-08]
[1761018369814,21.71429411,3941.8,3941.7,1e-08]
[1761018369984,19.13787111,3941.8,3941.7,1e-08]
[1761018370377,19.53583556,3941.8,3941.7,1e-08]
[1761018370579,27.46115256,3941.8,3941.7,1e-08]
[1761018370777,23.16971156,3941.8,3941.7,1e-08]
[1761018371001,17.92247968,3941.8,3941.7,1e-08]
[1761018371207,16.52235919,3941.8,3941.7,1e-08]
[1761018371592,19.67970519,3941.8,3941.7,1e-08]
[1761018371795,18.09931119,3941.8,3941.7,1e-08]
[1761018372700,19.15044619,3941.8,3941.7,1e-08]
[1761018372903,18.29900274,3941.8,3941.7,1e-08]
[1761018373721,20.74490674,3941.8,3941.7,1e-08]
[1761018373883,20.35390674,3941.8,3941.7,1e-08]
[1761018374186,20.14611174,3941.8,3941.7,1e-08]
[1761018374512,20.54406792,3941.8,3941.7,1e-08]
[1761018374712,22.05502992,3941.8,3941.7,1e-08]
[1761018375080,20.73263592,3941.8,3941.7,1e-08]
[1761018375494,19.93151592,3941.8,3941.7,1e-08]
[1761018375691,21.41490992,3941.8,3941.7,1e-08]
[1761018375898,19.33722792,3941.8,3941.7,1e-08]
[1761018376097,18.66537792,3941.8,3941.7,1e-08]
[1761018376786,22.23716092,3941.8,3941.7,1e-08]
[1761018377598,19.88291692,3941.8,3941.7,1e-08]
[1761018377798,19.43049692,3941.8,3941.7,1e-08]
[1761018378800,10.31244992,3941.8,3941.7,1e-08]
[1761018379017,22.53575974,3941.8,3941.7,1e-08]
[1761018380001,22.50248174,3941.8,3941.7,1e-08]
[1761018380196,17.48707074,3941.8,3941.7,1e-08]
[1761018380520,2.68289051,3941.8,3941.7,0.43130001]
[1761018380921,4.41089051,3941.8,3941.7,0.43130001]
[1761018381121,7.50813019,3941.8,3941.7,0.43130001]
[1761018381316,7.46391207,3941.8,3941.7,0.43130001]
[1761018381621,3.199,3941.8,3941.7,0.43130001]
[1761018382122,7.46391207,3941.8,3941.7,0.43130001]
[1761018382323,12.25784707,3941.8,3941.7,1e-08]
[1761018382487,7.46391207,3941.8,3941.7,0.43130001]
[1761018382688,4.26491207,3941.8,3941.7,0.43130001]
[1761018382908,7.46391207,3941.8,3941.7,0.43130001]
[1761018383896,7.50812436,3941.8,3941.7,0.43130001]
[1761018386210,18.08373259,3941.8,3941.7,1e-08]
[1761018386411,11.7585157,3941.8,3941.7,0.43130001]
[1761018386628,8.55240459,3941.8,3941.7,0.43130001]
[1761018386788,14.75331959,3941.8,3941.7,0.43130001]
[1761018387124,14.75331959,3941.8,3941.7,1e-08]
[1761018387125,4.26491207,3941.8,3941.7,1e-08]
[1761018387290,4.26491207,3941.8,3941.7,0.43130001]
[1761018390689,4.30912448,3941.8,3941.7,0.43130001]
[1761018390890,1.77221241,3941.8,3941.7,0.43130001]
[1761018392316,1.77321241,3941.8,3941.7,0.43130001]
[1761018392514,4.31012448,3941.8,3941.7,0.43130001]
[1761018393996,1.77321241,3941.8,3941.7,0.43130001]
[1761018395128,0.04521241,3941.8,3941.7,0.43130001]
[1761018395328,0.17161241,3941.8,3941.7,0.72854625]
[1761018395708,0.17161241,3941.8,3941.7,0.75391601]
[1761018396026,0.17161241,3941.8,3941.7,0.72854625]
[1761018400800,0.17161241,3941.8,3941.7,0.43130001]
[1761018404209,2.70852448,3941.8,3941.7,0.43130001]
[1761018404531,0.17161241,3941.8,3941.7,0.43130001]
[1761018404910,2.70852448,3941.8,3941.7,0.43130001]
[1761018406037,0.17161241,3941.8,3941.7,0.43130001]
[1761018407055,0.16107547,3941.8,3941.7,0.43130001]
[1761018408754,0.16107547,3941.8,3941.7,1e-08]
[1761018408942,0.16107547,3941.8,3941.7,0.46160001]
[1761018410360,0.16107547,3941.8,3941.7,0.76186952]
[1761018412260,0.16107547,3941.8,3941.7,0.46160001]
[1761018414331,0.16107547,3941.8,3941.7,1e-08]
[1761018414664,0.16107547,3941.8,3941.7,0.46160001]
[1761018419570,0.16107547,3941.8,3941.7,1e-08]
[1761018420371,2.69798754,3941.8,3941.7,1e-08]
[1761018420538,4.69578629,3941.8,3941.7,1e-08]
[1761018420741,6.86302029,3941.8,3941.7,1e-08]
[1761018421040,4.79708629,3941.8,3941.7,1e-08]
[1761018421353,8.54182729,3941.8,3941.7,1e-08]
[1761018421555,8.50815182,3941.8,3941.7,1e-08]
[1761018422377,7.19347182,3941.8,3941.7,1e-08]
[1761018422577,4.76341082,3941.8,3941.7,1e-08]
[1761018422976,6.77547182,3941.8,3941.7,1e-08]
[1761018423671,13.84341282,3941.8,3941.7,1e-08]
[1761018423871,9.71558283,3941.8,3941.7,1e-08]
[1761018424665,12.12561883,3941.8,3941.7,1e-08]
[1761018424871,5.06005383,3941.8,3941.7,1e-08]
[1761018425196,10.67087183,3941.8,3941.7,1e-08]
[1761018425803,18.14226883,3941.8,3941.7,1e-08]
[1761018426268,16.12007883,3941.8,3941.7,1e-08]
[1761018426469,15.12472783,3941.8,3941.7,1e-08]
[1761018426661,21.76514883,3941.8,3941.7,1e-08]
[1761018427367,19.41660583,3941.8,3941.7,1e-08]
[1761018427768,20.01851983,3941.8,3941.7,1e-08]
[1761018428114,19.44551983,3941.8,3941.7,1e-08]
[1761018428676,21.28400283,3941.8,3941.7,1e-08]
[1761018429006,19.48625583,3941.8,3941.7,1e-08]
[1761018429173,19.99313583,3941.8,3941.7,1e-08]
[1761018429580,4.77198516,3941.5,3941.4,0.002]
[1761018429808,37.97098516,3941.5,3941.4,0.002]
[1761018430003,38.07228516,3941.5,3941.4,0.002]
[1761018430711,8.17404988,3941.5,3941.4,0.002]
[1761018430915,38.17404988,3941.5,3941.4,0.002]
[1761018431214,26.79971298,3941.5,3941.4,0.002]
[1761018431378,22.82617198,3941.5,3941.4,0.002]
[1761018431782,28.77602198,3941.5,3941.4,0.002]
[1761018432798,29.13803298,3941.5,3941.4,0.002]
[1761018433136,29.18226026,3941.5,3941.4,0.002]
[1761018434010,29.18225926,3941.5,3941.4,0.002]
[1761018434929,29.18226126,3941.5,3941.4,0.002]
[1761018435717,28.77414926,3941.5,3941.4,0.002]
[1761018436012,29.13117626,3941.5,3941.4,0.002]
[1761018436396,29.18459037,3941.5,3941.4,0.002]
[1761018436801,39.71290986,3941.5,3941.4,0.002]
[1761018437625,25.51940786,3941.5,3941.4,0.002]
[1761018437820,26.67604486,3941.5,3941.4,0.002]
[1761018438047,26.31959486,3941.5,3941.4,0.002]
[1761018438344,13.58262304,3941.0,3940.9,0.002]
[1761018438528,16.78162304,3941.0,3940.9,0.002]
[1761018438850,16.00683204,3941.0,3940.9,0.002]
[1761018439027,15.71931367,3941.0,3940.9,0.002]
[1761018440049,14.85484367,3941.0,3940.9,0.002]
[1761018440227,16.66002269,3941.0,3940.9,0.002]
[1761018440614,12.95697669,3941.0,3940.9,0.002]
[1761018441114,13.86527769,3941.0,3940.9,0.002]
[1761018441446,13.303791,3941.0,3940.9,0.002]
[1761018441634,9.31383737,3941.0,3940.9,0.002]
[1761018441832,12.46212837,3941.0,3940.9,0.002]
[1761018442149,12.64158237,3941.0,3940.9,0.002]
[1761018442849,12.16153137,3941.0,3940.9,0.002]
[1761018443067,9.31383737,3941.0,3940.9,0.002]
[1761018443349,11.36550637,3941.0,3940.9,0.002]
[1761018443513,11.66958937,3941.0,3940.9,0.002]
[1761018443916,13.45273437,3941.0,3940.9,0.002]
[1761018444146,11.77982737,3941.0,3940.9,0.002]
[1761018444641,0.44224187,3941.0,3940.9,0.4309]
[1761018445055,0.56864187,3941.0,3940.9,0.4309]
[1761018445856,3.10606891,3941.0,3940.9,0.4309]
[1761018446019,4.83406891,3941.0,3940.9,0.4309]
[1761018447828,3.0618376,3941.0,3940.9,0.4309]
[1761018449557,3.0618376,3941.0,3940.9,0.002]
[1761018450128,6.2608376,3941.0,3940.9,0.002]
[1761018450630,8.5271936,3941.0,3940.9,0.002]
[1761018452054,3.72341056,3941.0,3940.9,0.4467]
[1761018452255,3.3254,3941.0,3940.9,0.4467]
[1761018452461,0.1264,3941.0,3940.9,0.4467]
[1761018454268,0.17062405,3941.0,3940.9,0.4467]
[1761018454477,1.89862405,3941.0,3940.9,0.4467]
[1761018454973,3.47155093,3941.0,3940.9,0.002]
[1761018455268,17.23269069,3941.0,3940.9,0.002]
[1761018455468,17.63072778,3941.0,3940.9,0.002]
[1761018455862,16.26680078,3941.0,3940.9,0.002]
[1761018456075,20.51642629,3941.0,3940.9,0.002]
[1761018456374,20.28648692,3941.0,3940.9,0.002]
[1761018456671,19.45278792,3941.0,3940.9,0.002]
[1761018457177,24.00745892,3941.0,3940.9,0.002]
[1761018457378,23.56574692,3941.0,3940.9,0.002]
[1761018457584,22.58489792,3941.0,3940.9,0.002]
[1761018457754,20.45642392,3941.0,3940.9,0.002]
[1761018458372,25.06609387,3941.0,3940.9,0.002]
[1761018458742,22.54599387,3941.0,3940.9,0.002]
[1761018459469,15.72641776,3941.0,3940.9,0.002]
[1761018460489,16.91564676,3941.0,3940.9,0.002]
[1761018460874,14.68039176,3941.0,3940.9,0.002]
[1761018461276,10.82272426,3941.0,3940.9,0.002]
[1761018461475,12.47961463,3941.0,3940.9,0.002]
[1761018462386,11.79630563,3941.0,3940.9,0.002]
[1761018463597,14.37491063,3941.0,3940.9,0.002]
[1761018464295,12.67170363,3941.0,3940.9,0.002]
[1761018464594,11.84479063,3941.0,3940.9,0.002]
[1761018465494,9.12521163,3941.0,3940.9,0.002]
[1761018465675,13.81932084,3941.0,3940.9,0.002]
[1761018465876,9.40080484,3941.0,3940.9,0.002]
[1761018466078,11.47716384,3941.0,3940.9,0.002]
[1761018466498,14.04429384,3941.0,3940.9,0.002]
[1761018466664,12.74225384,3941.0,3940.9,0.002]
[1761018466864,11.77397184,3941.0,3940.9,0.002]
[1761018467074,11.76809456,3941.0,3940.9,0.002]
[1761018467405,4.70181835,3941.0,3940.9,0.002]
[1761018467607,7.90181835,3941.0,3940.9,0.4467]
[1761018467783,7.90181835,3941.0,3940.9,0.002]
[1761018467984,10.19536635,3941.0,3940.9,0.002]
[1761018468202,10.29666635,3941.0,3940.9,0.002]
[1761018468399,9.20877513,3941.0,3940.9,0.002]
[1761018468600,12.83498713,3941.0,3940.9,0.002]
[1761018468809,12.08147113,3941.0,3940.9,0.002]
[1761018469490,17.42166813,3941.0,3940.9,0.002]
[1761018470092,15.66703613,3941.0,3940.9,0.002]
[1761018470610,16.02247113,3941.0,3940.9,0.002]
[1761018470990,13.90569813,3941.0,3940.9,0.002]
[1761018471584,14.26855013,3941.0,3940.9,0.002]
[1761018473082,13.71955013,3941.0,3940.9,0.002]
[1761018473382,11.35957913,3941.0,3940.9,0.002]
[1761018473716,11.93889713,3941.0,3940.9,0.002]
[1761018474680,10.09496435,3941.0,3940.9,0.002]
[1761018474885,10.33102835,3941.0,3940.9,0.002]
[1761018475718,15.06715546,3941.0,3940.9,0.002]
[1761018475924,15.16845546,3941.0,3940.9,0.002]
[1761018476116,14.95530746,3941.0,3940.9,0.002]
[1761018476323,15.69549,3941.0,3940.9,0.002]
[1761018476623,15.59419,3941.0,3940.9,0.002]
[1761018476819,16.485963,3941.0,3940.9,0.002]
[1761018477022,16.587263,3941.0,3940.9,0.002]
[1761018477721,18.086299,3941.0,3940.9,0.002]
[1761018478392,18.087299,3941.0,3940.9,0.002]
[1761018478591,15.119939,3941.0,3940.9,0.002]
[1761018478791,17.686391,3941.0,3940.9,0.002]
[1761018479586,17.251621,3941.0,3940.9,0.002]
[1761018479788,17.42114,3941.0,3940.9,0.002]
[1761018481018,20.063823,3941.0,3940.9,0.002]
[1761018481220,19.66578591,3941.0,3940.9,0.002]
[1761018481526,18.98726591,3941.0,3940.9,0.002]
[1761018482038,18.99268491,3941.0,3940.9,0.002]
[1761018482911,21.9677534,3941.0,3940.9,0.002]
[1761018483846,22.4746334,3941.0,3940.9,0.002]
[1761018484008,35.2269104,3941.0,3940.9,0.002]
[1761018484210,32.0765894,3941.0,3940.9,0.002]
[1761018484441,2.53768461,3940.6,3940.5,0.002]
[1761018484660,27.74785365,3940.6,3940.5,0.002]
[1761018484947,27.46746965,3940.6,3940.5,0.002]
[1761018485240,27.51170533,3940.6,3940.5,0.002]
[1761018485442,27.22901833,3940.6,3940.5,0.002]
[1761018485648,26.64226433,3940.6,3940.5,0.002]
[1761018485950,27.37282795,3940.6,3940.5,0.002]
[1761018486158,25.90785495,3940.6,3940.5,0.002]
[1761018486447,20.47309995,3940.6,3940.5,0.002]
[1761018486745,14.71805495,3940.6,3940.5,0.002]
[1761018486925,8.60094795,3940.6,3940.5,0.002]
[1761018487125,11.78834695,3940.6,3940.5,0.002]
[1761018487444,11.01857995,3940.6,3940.5,0.002]
[1761018487643,8.60094795,3940.6,3940.5,0.4735]
[1761018487844,13.67743595,3940.6,3940.5,0.4735]
[1761018488047,13.27937233,3940.6,3940.5,0.4735]
[1761018488516,7.50992029,3940.6,3940.5,0.4735]
[1761018489144,4.30992029,3940.6,3940.5,0.4735]
[1761018489448,7.50992029,3940.6,3940.5,0.4735]
[1761018491017,9.62865229,3940.6,3940.5,0.002]
[1761018491251,7.50992029,3940.6,3940.5,0.002]
[1761018491421,9.83484429,3940.6,3940.5,0.002]
[1761018492318,10.23288688,3940.6,3940.5,0.002]
[1761018493652,7.90796288,3940.6,3940.5,0.002]
[1761018493852,7.90796288,3940.6,3940.5,0.4735]
[1761018494025,4.70796288,3940.6,3940.5,0.4735]
[1761018494220,7.90796288,3940.6,3940.5,0.4735]
[1761018495524,2.17027827,3940.6,3940.5,0.4735]
[1761018495726,4.6637272,3940.6,3940.5,0.4735]
[1761018496752,2.12604259,3940.6,3940.5,0.4735]
[1761018498339,4.6637272,3940.6,3940.5,0.4735]
[1761018498539,4.6637272,3940.6,3940.5,0.4538]
[1761018498540,4.7901272,3940.6,3940.5,0.4538]
[1761018499140,4.39208461,3940.6,3940.5,0.4538]
[1761018501444,4.39208461,3940.6,3940.5,0.002]
[1761018501445,15.20188661,3940.6,3940.5,0.002]
[1761018501661,12.69018644,3940.6,3940.5,0.002]
[1761018502175,9.40238244,3940.6,3940.5,0.002]
[1761018502334,11.87055544,3940.6,3940.5,0.002]
[1761018502537,11.96518644,3940.6,3940.5,0.002]
[1761018502757,9.40238244,3940.6,3940.5,0.002]
[1761018503137,11.75990144,3940.6,3940.5,0.002]
[1761018503338,11.70490144,3940.6,3940.5,0.002]
[1761018503540,11.80090144,3940.6,3940.5,0.002]
[1761018503766,12.19893784,3940.6,3940.5,0.002]
[1761018503939,17.55181784,3940.6,3940.5,0.002]
[1761018504138,16.99010784,3940.6,3940.5,0.002]
[1761018504560,15.92890784,3940.6,3940.5,0.002]
[1761018505606,16.36590784,3940.6,3940.5,0.002]
[1761018505801,15.92890784,3940.6,3940.5,0.002]
[1761018506601,13.67690784,3940.6,3940.5,0.002]
[1761018506757,12.10793784,3940.6,3940.5,0.002]
[1761018507592,12.10293784,3940.6,3940.5,0.002]
[1761018508713,14.22668884,3940.6,3940.5,0.002]
[1761018509027,6.60041884,3940.6,3940.5,0.002]
[1761018509226,7.99012101,3940.6,3940.5,0.002]
[1761018509376,7.59208461,3940.6,3940.5,0.002]
[1761018509776,9.65721061,3940.6,3940.5,0.002]
[1761018511005,13.19096161,3940.6,3940.5,0.002]
[1761018512502,9.80746461,3940.6,3940.5,0.002]
[1761018512702,10.20550775,3940.6,3940.5,0.002]
[1761018512898,7.59208461,3940.6,3940.5,0.002]
[1761018513103,11.47621061,3940.6,3940.5,0.002]
[1761018514115,12.81973961,3940.6,3940.5,0.002]
[1761018514597,14.40517274,3940.6,3940.5,0.002]
[1761018514796,13.72792374,3940.6,3940.5,0.002]
[1761018515002,13.42942374,3940.6,3940.5,0.002]
[1761018515819,14.03530374,3940.6,3940.5,0.002]
[1761018515979,24.76459623,3940.2,3940.1,0.002]
[1761018516323,18.05062974,3940.2,3940.1,0.002]
[1761018516492,18.14962974,3940.2,3940.1,0.002]
[1761018517018,20.89295174,3940.2,3940.1,0.002]
[1761018517218,21.39983174,3940.2,3940.1,0.002]
[1761018517518,10.8017349,3939.8,3939.7,0.002]
[1761018517810,14.57177735,3939.8,3939.7,0.002]
[1761018518125,15.51597735,3939.8,3939.7,0.002]
[1761018518321,15.94907735,3939.8,3939.7,0.002]
[1761018518622,9.47991035,3939.8,3939.7,0.002]
[1761018518782,8.2974403,3939.8,3939.7,0.002]
[1761018518984,10.8155833,3939.8,3939.7,0.002]
[1761018519580,10.85982632,3939.8,3939.7,0.002]
[1761018520093,8.34168332,3939.8,3939.7,0.002]
[1761018520417,11.11832832,3939.8,3939.7,0.002]
[1761018520615,12.48397305,3939.8,3939.7,0.002]
[1761018521020,9.70732805,3939.8,3939.7,0.002]
[1761018521191,8.34168332,3939.8,3939.7,0.002]
[1761018521719,7.90858332,3939.8,3939.7,0.002]
[1761018522483,12.78248832,3939.8,3939.7,0.002]
[1761018523323,7.90858332,3939.8,3939.7,0.002]
[1761018524228,11.75493132,3939.8,3939.7,0.002]
[1761018524432,15.23027535,3939.8,3939.7,0.002]
[1761018524596,15.33047535,3939.8,3939.7,0.002]
[1761018525134,15.23027535,3939.8,3939.7,0.002]
[1761018525329,9.38119835,3939.8,3939.7,0.002]
[1761018525635,14.82215635,3939.8,3939.7,0.002]
[1761018526033,14.33015635,3939.8,3939.7,0.002]
[1761018526434,14.77976935,3939.8,3939.7,0.002]
[1761018527404,17.17735635,3939.8,3939.7,0.002]
[1761018527715,15.77735635,3939.8,3939.7,0.002]
[1761018528025,7.90858332,3939.8,3939.7,0.4351]
[1761018528428,12.01501332,3939.8,3939.7,0.002]
[1761018528832,13.18479832,3939.8,3939.7,0.002]
[1761018529134,11.55956132,3939.8,3939.7,0.002]
[1761018529450,7.90858332,3939.8,3939.7,0.4351]
[1761018529740,7.90858332,3939.8,3939.7,0.002]
[1761018530546,7.90858332,3939.8,3939.7,0.4351]
[1761018530752,21.56591555,3939.8,3939.7,0.002]
[1761018530914,16.57755455,3939.8,3939.7,0.002]
[1761018531116,16.3908558,3939.8,3939.7,0.002]
[1761018531328,8.99656355,3939.8,3939.7,0.002]
[1761018531654,5.14168332,3939.8,3939.7,0.4351]
[1761018531842,8.34168332,3939.8,3939.7,0.4351]
[1761018532015,8.2974403,3939.8,3939.7,0.4351]
[1761018532430,7.8643403,3939.8,3939.7,0.4351]
[1761018534964,7.90858213,3939.8,3939.7,0.4351]
[1761018538466,4.70858213,3939.8,3939.7,0.4351]
[1761018538672,7.90858213,3939.8,3939.7,0.4351]
[1761018539870,4.70858213,3939.8,3939.7,0.4351]
[1761018540030,7.90858213,3939.8,3939.7,0.4351]
[1761018540229,7.51044173,3939.8,3939.7,0.4351]
[1761018543644,7.51044173,3939.8,3939.7,0.002]
[1761018543965,7.51044173,3939.8,3939.7,0.45]
[1761018546043,7.51044173,3939.8,3939.7,0.002]
[1761018547279,8.5689378,3939.8,3939.7,0.002]
[1761018547662,16.7200378,3939.8,3939.7,0.002]
[1761018547867,12.4884358,3939.8,3939.7,0.002]
[1761018548740,12.5985378,3939.8,3939.7,0.002]
[1761018549576,12.6998378,3939.8,3939.7,0.002]
[1761018549877,12.8736848,3939.8,3939.7,0.002]
[1761018550079,12.9749848,3939.8,3939.7,0.002]
[1761018550260,11.8738318,3939.8,3939.7,0.002]
[1761018550777,7.51044173,3939.8,3939.7,0.002]
[1761018551478,7.51044173,3939.8,3939.7,0.45]
[1761018551675,7.51044173,3939.8,3939.7,0.002]
[1761018552277,7.61223546,3939.8,3939.7,0.002]
[1761018553977,1.77224183,3939.8,3939.7,0.45]
[1761018554162,1.728,3939.8,3939.7,0.45]
[1761018554856,4.2661999,3939.8,3939.7,0.45]
[1761018555068,4.2661999,3939.8,3939.7,0.002]
[1761018555290,4.2661999,3939.8,3939.7,0.45]
[1761018556406,13.83590606,3939.8,3939.7,0.002]
[1761018556708,9.03984906,3939.8,3939.7,0.002]
[1761018557094,8.31431776,3939.8,3939.7,0.4641]
[1761018557481,5.11431776,3939.8,3939.7,0.002]
[1761018557810,8.31431776,3939.8,3939.7,0.4641]
[1761018557965,5.11431776,3939.8,3939.7,0.4641]
[1761018558166,4.66431776,3939.8,3939.7,0.4641]
[1761018558402,4.7085574,3939.8,3939.7,0.4641]
[1761018558801,4.66431776,3939.8,3939.7,0.4641]
[1761018559106,4.66431776,3939.8,3939.7,0.002]
[1761018559666,4.66431776,3939.8,3939.7,0.4641]
[1761018562397,4.66431776,3939.8,3939.7,0.002]
[1761018562693,5.70465713,3939.8,3939.7,0.002]
[1761018563096,5.74889795,3939.8,3939.7,0.002]
[1761018563478,4.70855858,3939.8,3939.7,0.002]
[1761018565695,10.42904558,3939.8,3939.7,0.002]
[1761018565900,6.83231658,3939.8,3939.7,0.002]
[1761018566374,7.34811458,3939.8,3939.7,0.002]
[1761018566573,4.70855858,3939.8,3939.7,0.002]
[1761018566972,8.14095858,3939.8,3939.7,0.002]
[1761018567389,8.14095858,3939.8,3939.7,0.4641]
[1761018568273,7.90855858,3939.8,3939.7,0.4641]
[1761018568890,4.70855858,3939.8,3939.7,0.4641]
[1761018569410,7.90855858,3939.8,3939.7,0.4641]
[1761018569576,2.17035868,3939.8,3939.7,0.4641]
[1761018572113,2.17035868,3939.8,3939.7,0.002]
[1761018572415,4.70855858,3939.8,3939.7,0.002]
[1761018573214,2.17035868,3939.8,3939.7,0.002]
[1761018573506,4.70855858,3939.8,3939.7,0.002]
[1761018573705,5.75332904,3939.8,3939.7,0.002]
[1761018574411,4.70855858,3939.8,3939.7,0.002]
[1761018575590,4.94095858,3939.8,3939.7,0.002]
[1761018575976,7.90855858,3939.8,3939.7,0.4651]
[1761018577688,7.90855858,3939.8,3939.7,0.002]
[1761018578503,4.70855858,3939.8,3939.7,0.002]
[1761018579105,4.70855858,3939.8,3939.7,0.4651]
[1761018579818,4.70855858,3939.8,3939.7,0.002]
[1761018581714,5.80987513,3939.8,3939.7,0.002]
[1761018582015,5.91227513,3939.8,3939.7,0.002]
[1761018583110,6.14467513,3939.8,3939.7,0.002]
[1761018585720,6.04227513,3939.8,3939.7,0.002]
[1761018586643,6.14467513,3939.8,3939.7,0.002]
[1761018590928,19.20457213,3939.8,3939.7,0.002]
[1761018591134,14.03756813,3939.8,3939.7,0.002]
[1761018591505,12.61398113,3939.8,3939.7,0.002]
[1761018591927,14.72515313,3939.8,3939.7,0.002]
[1761018592234,14.38411313,3939.8,3939.7,0.002]
[1761018592637,9.28985613,3939.8,3939.7,0.002]
[1761018592931,6.14467513,3939.8,3939.7,0.002]
[1761018593134,9.85571313,3939.8,3939.7,0.002]
[1761018593503,9.22400013,3939.8,3939.7,0.002]
[1761018594135,10.36900013,3939.8,3939.7,0.002]
[1761018594439,9.16900013,3939.8,3939.7,0.002]
[1761018595135,8.77500013,3939.8,3939.7,0.002]
[1761018595439,8.35834613,3939.8,3939.7,0.002]
[1761018595811,6.04227513,3939.8,3939.7,0.002]
[1761018596630,8.41696613,3939.8,3939.7,0.002]
[1761018596812,6.14467513,3939.8,3939.7,0.002]
[1761018598042,8.43796313,3939.8,3939.7,0.002]
[1761018598540,6.14467513,3939.8,3939.7,0.002]
[1761018598749,6.04227513,3939.8,3939.7,0.002]
[1761018599110,8.17321413,3939.8,3939.7,0.002]
[1761018599645,8.57166313,3939.8,3939.7,0.002]
[1761018600518,9.15966313,3939.8,3939.7,0.002]
[1761018600716,8.72866313,3939.8,3939.7,0.002]
[1761018601027,10.27062658,3939.8,3939.7,0.002]
[1761018601746,10.86834658,3939.8,3939.7,0.002]
[1761018602050,8.14095858,3939.8,3939.7,0.002]
[1761018602752,10.30563072,3939.8,3939.7,0.002]
[1761018602956,10.36063072,3939.8,3939.7,0.002]
[1761018603453,11.66084448,3939.8,3939.7,0.002]
[1761018603849,13.60044548,3939.8,3939.7,0.002]
[1761018604161,12.75239348,3939.8,3939.7,0.002]
[1761018604659,12.17103648,3939.8,3939.7,0.002]
[1761018605254,12.34413948,3939.8,3939.7,0.002]
[1761018605658,12.74227122,3939.8,3939.7,0.002]
[1761018606228,13.28760222,3939.8,3939.7,0.002]
[1761018606528,13.08149922,3939.8,3939.7,0.002]
[1761018606722,12.73111122,3939.8,3939.7,0.002]
[1761018607145,13.13321422,3939.8,3939.7,0.002]
[1761018608167,9.44118622,3939.8,3939.7,0.002]
[1761018608461,12.98981422,3939.8,3939.7,0.002]
[1761018609835,12.59168248,3939.8,3939.7,0.002]